fUSD/lending_fUSD_20240624
["ID","MTS","AMOUNT","RATE_DAILY","PERIOD"]
[330298506,1719239456408,-500.0,0.00020273,4]
[330298507,1719239456418,-499.24499403,0.00020273,4]
[330298508,1719239456428,-500.0,0.00020273,4]
[330298509,1719239456438,-500.0,0.00020273,4]
[330298510,1719239456447,-356.1635672,0.00020273,4]
[330298511,1719239456457,-500.0,0.00020273,4]
[330298512,1719239456466,-500.0,0.00020273,4]
[330298513,1719239456475,-1742.47,0.00020273,4]
[330298514,1719239456485,-500.0,0.00020273,4]
[330298515,1719239456496,-429.56894367,0.00020273,4]
[330298516,1719239456506,-799.17,0.00020273,4]
[330298517,1719239456516,-1282.11,0.00020273,4]
[330298518,1719239456525,-500.0,0.00020273,4]
[330298519,1719239456535,-1635.49,0.00020273,4]
[330298520,1719239456544,-500.0,0.00020273,4]
[330298521,1719239456553,-500.0,0.00020273,4]
[330298522,1719239456562,-500.0,0.00020273,4]
[330298523,1719239456571,-500.0,0.00020273,4]
[330298524,1719239456581,-500.0,0.00020273,4]
[330298525,1719239456590,-739.01,0.00020273,4]
[330298526,1719239456600,-500.0,0.00020273,4]
[330298527,1719239456610,-500.0,0.00020273,4]
[330298528,1719239456620,-500.0,0.00020273,4]
[330298529,1719239456629,-500.0,0.00020273,4]
[330298530,1719239456639,-500.0,0.00020273,4]
[330298531,1719239456648,-1113.8,0.00020273,4]
[330298532,1719239456657,-887.37,0.00020273,4]
[330298533,1719239456667,-603.07,0.00020273,4]
[330298534,1719239456676,-500.0,0.00020273,4]
[330298535,1719239456686,-500.0,0.00020273,4]
[330298536,1719239456695,-3495.38,0.00020273,4]
[330298537,1719239456705,-500.0,0.00020273,4]
[330298538,1719239456714,-500.0,0.00020273,4]
[330298539,1719239456723,-500.0,0.00020273,4]
[330298540,1719239456733,-747.55,0.00020273,4]
[330298541,1719239456743,-2081.01,0.00020273,4]
[330298542,1719239456752,-500.0,0.00020273,4]
[330298543,1719239456763,-500.0,0.00020273,4]
[330298544,1719239456773,-500.0,0.00020273,4]
[330298545,1719239456783,-377.41084235,0.00020273,4]
[330298546,1719239456792,-2306.25974502,0.00020321,2]
[330298547,1719239456801,-4609.91653972,0.00020438,2]
[330298548,1719239456811,-500.0,0.00020547,4]
[330298549,1719239456821,-467.82626453,0.00020547,4]
[330298550,1719239456830,-500.0,0.00020547,4]
[330298551,1719239456840,-500.0,0.00020547,4]
[330298552,1719239456849,-500.0,0.00020547,4]
[330298553,1719239456859,-500.0,0.00020547,4]
[330298554,1719239456869,-500.0,0.00020547,4]
[330298555,1719239456878,-500.0,0.00020547,4]
[330298556,1719239456888,-500.0,0.00020547,4]
[330298557,1719239456897,-500.0,0.00020547,4]
[330298558,1719239456906,-500.0,0.00020547,4]
[330298559,1719239456916,-500.0,0.00020547,4]
[330298560,1719239456925,-500.0,0.00020547,4]
[330298561,1719239456935,-500.0,0.00020547,4]
[330298562,1719239456945,-500.0,0.00020547,4]
[330298563,1719239456954,-575.83493649,0.00020547,4]
[330298564,1719239456964,-502.26,0.00020547,4]
[330298565,1719239456974,-500.0,0.00020547,4]
[330298566,1719239456984,-500.0,0.00020547,4]
[330298567,1719239456993,-500.0,0.00020547,4]
[330298568,1719239457003,-500.0,0.00020547,4]
[330298569,1719239457014,-500.0,0.00020547,4]
[330298570,1719239457024,-500.0,0.00020547,4]
[330298571,1719239457034,-500.0,0.00020547,4]
[330298572,1719239457043,-500.0,0.00020547,4]
[330298573,1719239457053,-543.84,0.00020547,4]
[330298574,1719239457062,-500.0,0.00020547,4]
[330298575,1719239457072,-577.68,0.00020547,4]
[330298576,1719239457081,-500.0,0.00020547,4]
[330298577,1719239457091,-500.0,0.00020547,4]
[330298578,1719239457101,-500.0,0.00020547,4]
[330298579,1719239457110,-500.0,0.00020547,4]
[330298580,1719239457120,-500.0,0.00020547,4]
[330298581,1719239457129,-500.0,0.00020547,4]
[330298582,1719239457139,-500.0,0.00020547,4]
[330298583,1719239457148,-500.0,0.00020547,4]
[330298584,1719239457158,-500.0,0.00020547,4]
[330298585,1719239457167,-500.0,0.00020547,4]
[330298586,1719239457177,-500.0,0.00020547,4]
[330298587,1719239457188,-500.0,0.00020547,4]
[330298588,1719239457200,-500.0,0.00020547,4]
[330298589,1719239457210,-500.0,0.00020547,4]
[330298590,1719239457219,-500.0,0.00020547,4]
[330298591,1719239457230,-500.0,0.00020547,4]
[330298592,1719239457240,-500.0,0.00020547,4]
[330298593,1719239457249,-500.0,0.00020547,4]
[330298594,1719239457261,-162.15,0.00020547,4]
[330298595,1719239457271,-500.0,0.00020547,4]
[330298596,1719239457281,-500.0,0.00020547,4]
[330298597,1719239457292,-500.0,0.00020547,4]
[330298598,1719239457302,-500.0,0.00020547,4]
[330298599,1719239457312,-500.0,0.00020547,4]
[330298600,1719239457322,-500.0,0.00020547,4]
[330298601,1719239457331,-500.0,0.00020547,4]
[330298602,1719239457341,-500.0,0.00020547,4]
[330298603,1719239457351,-151.0,0.00020547,2]
[330298604,1719239457360,-301.77856991,0.00020547,4]
[330298605,1719239457370,-511.36912933,0.00020547,4]
[330298606,1719239457379,-500.0,0.00020547,4]
[330298607,1719239457389,-500.0,0.00020547,4]
[330298608,1719239457399,-500.0,0.00020547,4]
[330298609,1719239457408,-808.59,0.00020547,4]
[330298610,1719239457417,-500.0,0.00020547,4]
[330298611,1719239457427,-500.0,0.00020547,4]
[330298612,1719239457436,-500.0,0.00020547,4]
[330298613,1719239457445,-500.0,0.00020547,4]
[330298614,1719239457455,-500.0,0.00020547,4]
[330298615,1719239457465,-295.81886178,0.00020547,4]
[330298616,1719239457474,-500.0,0.00020547,4]
[330298617,1719239457483,-500.0,0.00020547,4]
[330298618,1719239457493,-500.0,0.00020547,4]
[330298619,1719239457502,-500.0,0.00020547,4]
[330298620,1719239457512,-500.0,0.00020547,4]
[330298621,1719239457522,-996.16,0.00020547,4]
[330298622,1719239457531,-500.0,0.00020547,4]
[330298623,1719239457540,-500.0,0.00020547,4]
[330298624,1719239457549,-543.42256809,0.00020547,4]
[330298625,1719239457558,-500.0,0.00020547,4]
[330298626,1719239457567,-500.0,0.00020547,4]
[330298627,1719239457576,-500.0,0.00020547,4]
[330298628,1719239457585,-500.0,0.00020547,4]
[330298629,1719239457595,-500.0,0.00020547,4]
[330298630,1719239457604,-500.0,0.00020547,4]
[330298631,1719239457613,-500.0,0.00020547,4]
[330298632,1719239457623,-500.0,0.00020547,4]
[330298633,1719239457632,-500.0,0.00020547,4]
[330298634,1719239457641,-1399.22,0.00020547,4]
[330298635,1719239457651,-500.0,0.00020547,4]
[330298636,1719239457660,-770.47,0.00020547,4]
[330298637,1719239457669,-696.79,0.00020547,4]
[330298638,1719239457678,-500.0,0.00020547,4]
[330298639,1719239457687,-500.0,0.00020547,4]
[330298640,1719239457696,-640.17,0.00020547,4]
[330298641,1719239457705,-500.0,0.00020547,4]
[330298642,1719239457714,-500.0,0.00020547,4]
[330298643,1719239457723,-500.0,0.00020547,4]
[330298644,1719239457732,-500.0,0.00020547,4]
[330298645,1719239457741,-500.0,0.00020547,4]
[330298646,1719239457750,-500.0,0.00020547,4]
[330298647,1719239457760,-686.32,0.00020547,4]
[330298648,1719239457769,-644.07,0.00020547,4]
[330298649,1719239457778,-500.0,0.00020547,4]
[330298650,1719239457787,-500.0,0.00020547,4]
[330298651,1719239457796,-500.0,0.00020547,4]
[330298652,1719239457805,-500.0,0.00020547,4]
[330298653,1719239457814,-500.0,0.00020547,4]
[330298654,1719239457824,-500.0,0.00020547,4]
[330298655,1719239457833,-500.0,0.00020547,4]
[330298656,1719239457842,-1308.12,0.00020547,4]
[330298657,1719239457851,-500.0,0.00020547,4]
[330298658,1719239457860,-500.0,0.00020547,4]
[330298659,1719239457870,-500.0,0.00020547,4]
[330298660,1719239457879,-500.0,0.00020547,4]
[330298661,1719239457889,-375.2259402,0.00020547,4]
[330298662,1719239457898,-500.0,0.00020547,4]
[330298663,1719239457908,-500.0,0.00020547,4]
[330298664,1719239457918,-500.0,0.00020547,4]
[330298665,1719239457927,-500.0,0.00020547,4]
[330298666,1719239457937,-500.0,0.00020547,4]
[330298667,1719239457946,-500.0,0.00020547,4]
[330298668,1719239457957,-500.0,0.00020547,4]
[330298669,1719239457971,-500.0,0.00020547,4]
[330298670,1719239457980,-370.22209994,0.00020547,4]
[330298671,1719239457990,-539.75,0.00020547,4]
[330298672,1719239458000,-500.0,0.00020547,4]
[330298673,1719239458011,-500.0,0.00020547,4]
[330298674,1719239458020,-607.79,0.00020547,4]
[330298675,1719239458029,-500.0,0.00020547,4]
[330298676,1719239458038,-634.31,0.00020547,4]
[330298677,1719239458048,-516.48,0.00020547,4]
[330298678,1719239458058,-500.0,0.00020547,4]
[330298679,1719239458067,-500.0,0.00020547,4]
[330298680,1719239458076,-846.83,0.00020547,4]
[330298681,1719239458151,-1780.23,0.00020547,4]
[330298682,1719239458160,-500.0,0.00020547,4]
[330298683,1719239458170,-500.0,0.00020547,4]
[330298684,1719239458180,-500.0,0.00020547,4]
[330298685,1719239458195,-500.0,0.00020547,4]
[330298686,1719239458204,-500.0,0.00020547,4]
[330298687,1719239458214,-539.5,0.00020547,4]
[330298688,1719239458223,-464.65452955,0.00020547,4]
[330298689,1719239458234,-766.13,0.00020547,4]
[330298690,1719239458244,-500.0,0.00020547,4]
[330298691,1719239458253,-500.0,0.00020547,4]
[330298692,1719239458264,-500.0,0.00020547,4]
[330298693,1719239458273,-500.0,0.00020547,4]
[330298694,1719239458284,-500.0,0.00020547,4]
[330298695,1719239458294,-500.0,0.00020547,4]
[330298696,1719239458304,-500.0,0.00020547,4]
[330298697,1719239458313,-500.0,0.00020547,4]
[330298698,1719239458322,-1742.47,0.00020547,4]
[330298699,1719239458332,-500.0,0.00020547,4]
[330298700,1719239458341,-799.17,0.00020547,4]
[330298701,1719239458351,-1282.11,0.00020547,4]
[330298702,1719239458360,-500.0,0.00020547,4]
[330298703,1719239458369,-1635.49,0.00020547,4]
[330298704,1719239458379,-500.0,0.00020547,4]
[330298705,1719239458388,-500.0,0.00020547,4]
[330298706,1719239458398,-500.0,0.00020547,4]
[330298707,1719239458407,-500.0,0.00020547,4]
[330298708,1719239458417,-500.0,0.00020547,4]
[330298709,1719239458426,-739.01,0.00020547,4]
[330298710,1719239458435,-500.0,0.00020547,4]
[330298711,1719239458444,-500.0,0.00020547,4]
[330298712,1719239458454,-500.0,0.00020547,4]
[330298713,1719239458463,-500.0,0.00020547,4]
[330298714,1719239458472,-500.0,0.00020547,4]
[330298715,1719239458482,-1113.8,0.00020547,4]
[330298716,1719239458491,-887.37,0.00020547,4]
[330298717,1719239458502,-603.07,0.00020547,4]
[330298718,1719239458513,-500.0,0.00020547,4]
[330298719,1719239458522,-500.0,0.00020547,4]
[330298720,1719239458531,-3495.38,0.00020547,4]
[330298721,1719239458540,-500.0,0.00020547,4]
[330298722,1719239458549,-500.0,0.00020547,4]
[330298723,1719239458560,-500.0,0.00020547,4]
[330298724,1719239458570,-747.55,0.00020547,4]
[330298725,1719239458580,-2081.01,0.00020547,4]
[330298726,1719239458589,-500.0,0.00020547,4]
[330298727,1719239458598,-500.0,0.00020547,4]
[330298728,1719239458608,-500.0,0.00020547,4]
[330298729,1719239458617,-172.957563,0.00020593,2]
[330298730,1719239458626,-3870.03518597,0.00020599,2]
[330298731,1719239458636,-300.0,0.00020693,2]
[330298732,1719239458645,-150.0,0.00020693,2]
[330298733,1719239458654,-150.0,0.00020693,2]
[330298734,1719239458664,-501.27197359,0.00020699,2]
[330298735,1719239458673,-335.94,0.00020737,2]
[330298736,1719239458682,-187.96812151,0.00020767,2]
[330298737,1719239458691,-412.61839352,0.00020795,2]
[330298738,1719239458700,-526.48485008,0.00020795,2]
[330298739,1719239458710,-622.21690927,0.00020798,2]
[330298740,1719239458719,-290.76229381,0.00020798,2]
[330298741,1719239458728,-550.0,0.000208,2]
[330298742,1719239458737,-550.0,0.000208,2]
[330298743,1719239458747,-10246.95822242,0.000208,3]
[330298744,1719239458955,-410.64464671,0.000208,3]
[330298745,1719239458968,-3358.8323994,0.000208,3]
[330298746,1719239458980,-279.94694994,0.000208,3]
[330298747,1719239459026,-1661.0,0.0001904,2]
[330298748,1719239459035,-3058.36,0.00019178,2]
[330298749,1719239459048,-85959.95621853,0.000208,3]
[330298750,1719239459057,-11939.62026384,0.00020812,2]
[330298751,1719239459067,-155.0,0.00020816,2]
[330298752,1719239459076,-500.0,0.00020821,4]
[330298753,1719239459085,-500.0,0.00020821,4]
[330298754,1719239459094,-500.0,0.00020821,4]
[330298755,1719239459103,-500.0,0.00020821,4]
[330298756,1719239459112,-500.0,0.00020821,4]
[330298757,1719239459121,-500.0,0.00020821,4]
[330298758,1719239459130,-500.0,0.00020821,4]
[330298759,1719239459139,-500.0,0.00020821,4]
[330298760,1719239459148,-500.0,0.00020821,4]
[330298761,1719239459158,-500.0,0.00020821,4]
[330298762,1719239459167,-311.89113244,0.00020821,4]
[330298763,1719239459176,-500.0,0.00020821,4]
[330298764,1719239459189,-367.77977824,0.00020821,4]
[330298765,1719239459198,-500.0,0.00020821,4]
[330298766,1719239459208,-502.26,0.00020821,4]
[330298767,1719239459217,-382.72023867,0.00020821,4]
[330298768,1719239459226,-500.0,0.00020821,4]
[330298769,1719239459237,-500.0,0.00020821,4]
[330298770,1719239459246,-500.0,0.00020821,4]
[330298771,1719239459255,-596.85,0.00020821,4]
[330298772,1719239459265,-500.0,0.00020821,4]
[330298773,1719239459275,-500.0,0.00020821,4]
[330298774,1719239459284,-500.0,0.00020821,4]
[330298775,1719239459293,-500.0,0.00020821,4]
[330298776,1719239459303,-577.68,0.00020821,4]
[330298777,1719239459312,-500.0,0.00020821,4]
[330298778,1719239459321,-500.0,0.00020821,4]
[330298779,1719239459330,-500.0,0.00020821,4]
[330298780,1719239459339,-500.0,0.00020821,4]
[330298781,1719239459349,-500.0,0.00020821,4]
[330298782,1719239459358,-500.0,0.00020821,4]
[330298783,1719239459367,-500.0,0.00020821,4]
[330298784,1719239459376,-500.0,0.00020821,4]
[330298785,1719239459385,-500.0,0.00020821,4]
[330298786,1719239459394,-500.0,0.00020821,4]
[330298787,1719239459403,-500.0,0.00020821,4]
[330298788,1719239459412,-470.45224236,0.00020821,4]
[330298789,1719239459422,-500.0,0.00020821,4]
[330298790,1719239459432,-589.64723486,0.00020821,4]
[330298791,1719239459441,-500.0,0.00020821,4]
[330298792,1719239459450,-250.42009387,0.00020821,4]
[330298793,1719239459459,-500.0,0.00020821,4]
[330298794,1719239459468,-500.0,0.00020821,4]
[330298795,1719239459477,-162.15,0.00020821,4]
[330298796,1719239459486,-500.0,0.00020821,4]
[330298797,1719239459497,-500.0,0.00020821,4]
[330298798,1719239459506,-500.0,0.00020821,4]
[330298799,1719239459520,-500.0,0.00020821,4]
[330298800,1719239459529,-500.0,0.00020821,4]
[330298801,1719239459539,-500.0,0.00020821,4]
[330298802,1719239459548,-500.0,0.00020821,4]
[330298803,1719239459557,-500.0,0.00020821,4]
[330298804,1719239459566,-500.0,0.00020821,4]
[330298805,1719239459575,-500.0,0.00020821,4]
[330298806,1719239459584,-500.0,0.00020821,4]
[330298807,1719239459594,-808.59,0.00020821,4]
[330298808,1719239459604,-500.0,0.00020821,4]
[330298809,1719239459613,-500.0,0.00020821,4]
[330298810,1719239459623,-500.0,0.00020821,4]
[330298811,1719239459632,-407.5619284,0.00020821,4]
[330298812,1719239459642,-500.0,0.00020821,4]
[330298813,1719239459651,-500.0,0.00020821,4]
[330298814,1719239459661,-500.0,0.00020821,4]
[330298815,1719239459671,-500.0,0.00020821,4]
[330298816,1719239459680,-500.0,0.00020821,4]
[330298817,1719239459689,-405.88376621,0.00020821,4]
[330298818,1719239459699,-996.16,0.00020821,4]
[330298819,1719239459708,-500.0,0.00020821,4]
[330298820,1719239459718,-500.0,0.00020821,4]
[330298821,1719239459727,-500.0,0.00020821,4]
[330298822,1719239459737,-500.0,0.00020821,4]
[330298823,1719239459746,-500.0,0.00020821,4]
[330298824,1719239459755,-500.0,0.00020821,4]
[330298825,1719239459768,-500.0,0.00020821,4]
[330298826,1719239459777,-500.0,0.00020821,4]
[330298827,1719239459787,-500.0,0.00020821,4]
[330298828,1719239459796,-500.0,0.00020821,4]
[330298829,1719239459805,-1399.22,0.00020821,4]
[330298830,1719239459814,-500.0,0.00020821,4]
[330298831,1719239459823,-599.84112331,0.00020821,4]
[330298832,1719239459833,-770.47,0.00020821,4]
[330298833,1719239459842,-696.79,0.00020821,4]
[330298834,1719239459852,-500.0,0.00020821,4]
[330298835,1719239459861,-500.0,0.00020821,4]
[330298836,1719239459871,-640.17,0.00020821,4]
[330298837,1719239459880,-500.0,0.00020821,4]
[330298838,1719239459889,-500.0,0.00020821,4]
[330298839,1719239459900,-500.0,0.00020821,4]
[330298840,1719239459909,-500.0,0.00020821,4]
[330298841,1719239459919,-500.0,0.00020821,4]
[330298842,1719239459929,-686.32,0.00020821,4]
[330298843,1719239459939,-644.07,0.00020821,4]
[330298844,1719239459949,-500.0,0.00020821,4]
[330298845,1719239459958,-500.0,0.00020821,4]
[330298846,1719239459968,-500.0,0.00020821,4]
[330298847,1719239459978,-500.0,0.00020821,4]
[330298848,1719239459987,-500.0,0.00020821,4]
[330298849,1719239459996,-566.0659651,0.00020821,4]
[330298850,1719239460008,-500.0,0.00020821,4]
[330298851,1719239460018,-1308.12,0.00020821,4]
[330298852,1719239460027,-500.0,0.00020821,4]
[330298853,1719239460037,-500.0,0.00020821,4]
[330298854,1719239460048,-500.0,0.00020821,4]
[330298855,1719239460058,-500.0,0.00020821,4]
[330298856,1719239460068,-420.36223119,0.00020821,4]
[330298857,1719239460078,-500.0,0.00020821,4]
[330298858,1719239460088,-500.0,0.00020821,4]
[330298859,1719239460098,-500.0,0.00020821,4]
[330298860,1719239460107,-500.0,0.00020821,4]
[330298861,1719239460117,-500.0,0.00020821,4]
[330298862,1719239460127,-500.0,0.00020821,4]
[330298863,1719239460136,-500.0,0.00020821,4]
[330298864,1719239460147,-539.75,0.00020821,4]
[330298865,1719239460157,-500.0,0.00020821,4]
[330298866,1719239460166,-500.0,0.00020821,4]
[330298867,1719239460176,-607.79,0.00020821,4]
[330298868,1719239460186,-500.0,0.00020821,4]
[330298869,1719239460199,-634.31,0.00020821,4]
[330298870,1719239460209,-516.48,0.00020821,4]
[330298871,1719239460219,-500.0,0.00020821,4]
[330298872,1719239460230,-500.0,0.00020821,4]
[330298873,1719239460240,-846.83,0.00020821,4]
[330298874,1719239460250,-1780.23,0.00020821,4]
[330298875,1719239460262,-500.0,0.00020821,4]
[330298876,1719239460275,-500.0,0.00020821,4]
[330298877,1719239460286,-500.0,0.00020821,4]
[330298878,1719239460295,-500.0,0.00020821,4]
[330298879,1719239460305,-500.0,0.00020821,4]
[330298880,1719239460316,-539.5,0.00020821,4]
[330298881,1719239460326,-766.13,0.00020821,4]
[330298882,1719239460335,-500.0,0.00020821,4]
[330298883,1719239460345,-500.0,0.00020821,4]
[330298884,1719239460355,-500.0,0.00020821,4]
[330298885,1719239460365,-500.0,0.00020821,4]
[330298886,1719239460375,-500.0,0.00020821,4]
[330298887,1719239460385,-500.0,0.00020821,4]
[330298888,1719239460395,-500.0,0.00020821,4]
[330298889,1719239460405,-500.0,0.00020821,4]
[330298890,1719239460415,-1742.47,0.00020821,4]
[330298891,1719239460425,-500.0,0.00020821,4]
[330298892,1719239460435,-799.17,0.00020821,4]
[330298893,1719239460445,-1282.11,0.00020821,4]
[330298894,1719239460454,-500.0,0.00020821,4]
[330298895,1719239460464,-1635.49,0.00020821,4]
[330298896,1719239460474,-500.0,0.00020821,4]
[330298897,1719239460484,-500.0,0.00020821,4]
[330298898,1719239460498,-500.0,0.00020821,4]
[330298899,1719239460509,-500.0,0.00020821,4]
[330298900,1719239460520,-500.0,0.00020821,4]
[330298901,1719239460529,-739.01,0.00020821,4]
[330298902,1719239460539,-589.40580973,0.00020821,4]
[330298903,1719239460549,-500.0,0.00020821,4]
[330298904,1719239460559,-500.0,0.00020821,4]
[330298905,1719239460569,-500.0,0.00020821,4]
[330298906,1719239460579,-567.12430604,0.00020821,4]
[330298907,1719239460589,-1113.8,0.00020821,4]
[330298908,1719239460598,-887.37,0.00020821,4]
[330298909,1719239460608,-603.07,0.00020821,4]
[330298910,1719239460617,-500.0,0.00020821,4]
[330298911,1719239460628,-500.0,0.00020821,4]
[330298912,1719239460638,-3495.38,0.00020821,4]
[330298913,1719239460647,-500.0,0.00020821,4]
[330298914,1719239460657,-500.0,0.00020821,4]
[330298915,1719239460668,-500.0,0.00020821,4]
[330298916,1719239460678,-747.55,0.00020821,4]
[330298917,1719239460688,-2081.01,0.00020821,4]
[330298918,1719239460698,-500.0,0.00020821,4]
[330298919,1719239460708,-500.0,0.00020821,4]
[330298920,1719239460718,-500.0,0.00020821,4]
[330298921,1719239460728,-1493.37730779,0.00020829,2]
[330298922,1719239460738,-309.92840343,0.00020861,2]
[330298923,1719239460748,-6209.3659952,0.00020892,2]
[330298924,1719239460760,-1182.54474866,0.00020892,2]
[330298925,1719239460770,-174.60559638,0.000209,2]
[330298926,1719239460780,-190.109262,0.00020914,2]
[330298927,1719239460790,-1814.44383707,0.00020916,2]
[330298928,1719239460800,-1814.44383707,0.00020957,2]
[330298929,1719239460810,-907.95485746,0.00021,2]
[330298930,1719239460820,-1250.0,0.00021,2]
[330298931,1719239460830,-50000.0,0.0002107,2]
[330298932,1719239460839,-150.0,0.00021078,2]
[330298933,1719239460849,-500.0,0.00021095,4]
[330298934,1719239460859,-500.0,0.00021095,4]
[330298935,1719239460869,-500.0,0.00021095,4]
[330298936,1719239460879,-500.0,0.00021095,4]
[330298937,1719239460889,-500.0,0.00021095,4]
[330298938,1719239460899,-222.62540662,0.00021095,4]
[330298939,1719239460910,-416.0,0.00021095,4]
[330298940,1719239460921,-500.0,0.00021095,4]
[330298941,1719239460931,-500.0,0.00021095,4]
[330298942,1719239460942,-500.0,0.00021095,4]
[330298943,1719239460952,-500.0,0.00021095,4]
[330298944,1719239460961,-500.0,0.00021095,4]
[330298945,1719239460971,-502.26,0.00021095,4]
[330298946,1719239460981,-500.0,0.00021095,4]
[330298947,1719239460991,-500.0,0.00021095,4]
[330298948,1719239461000,-500.0,0.00021095,4]
[330298949,1719239461015,-500.0,0.00021095,4]
[330298950,1719239461025,-500.0,0.00021095,4]
[330298951,1719239461038,-500.0,0.00021095,4]
[330298952,1719239461048,-500.0,0.00021095,4]
[330298953,1719239461060,-577.68,0.00021095,4]
[330298954,1719239461070,-500.0,0.00021095,4]
[330298955,1719239461080,-500.0,0.00021095,4]
[330298956,1719239461090,-500.0,0.00021095,4]
[330298957,1719239461100,-500.0,0.00021095,4]
[330298958,1719239461110,-500.0,0.00021095,4]
[330298959,1719239461120,-500.0,0.00021095,4]
[330298960,1719239461130,-406.06084409,0.00021095,4]
[330298961,1719239461141,-500.0,0.00021095,4]
[330298962,1719239461150,-500.0,0.00021095,4]
[330298963,1719239461160,-500.0,0.00021095,4]
[330298964,1719239461170,-500.0,0.00021095,4]
[330298965,1719239461180,-500.0,0.00021095,4]
[330298966,1719239461196,-500.0,0.00021095,4]
[330298967,1719239461206,-500.0,0.00021095,4]
[330298968,1719239461216,-500.0,0.00021095,4]
[330298969,1719239461227,-162.15,0.00021095,4]
[330298970,1719239461237,-500.0,0.00021095,4]
[330298971,1719239461247,-500.0,0.00021095,4]
[330298972,1719239461257,-500.0,0.00021095,4]
[330298973,1719239461277,-500.0,0.00021095,4]
[330298974,1719239461288,-500.0,0.00021095,4]
[330298975,1719239461297,-500.0,0.00021095,4]
[330298976,1719239461310,-500.0,0.00021095,4]
[330298977,1719239461320,-500.0,0.00021095,4]
[330298978,1719239461330,-435.58,0.00021095,4]
[330298979,1719239461340,-500.0,0.00021095,4]
[330298980,1719239461350,-500.0,0.00021095,4]
[330298981,1719239461360,-808.59,0.00021095,4]
[330298982,1719239461370,-500.0,0.00021095,4]
[330298983,1719239461380,-500.0,0.00021095,4]
[330298984,1719239461390,-500.0,0.00021095,4]
[330298985,1719239461400,-500.0,0.00021095,4]
[330298986,1719239461410,-500.0,0.00021095,4]
[330298987,1719239461419,-500.0,0.00021095,4]
[330298988,1719239461430,-500.0,0.00021095,4]
[330298989,1719239461441,-500.0,0.00021095,4]
[330298990,1719239461451,-996.16,0.00021095,4]
[330298991,1719239461461,-500.0,0.00021095,4]
[330298992,1719239461471,-500.0,0.00021095,4]
[330298993,1719239461481,-500.0,0.00021095,4]
[330298994,1719239461491,-500.0,0.00021095,4]
[330298995,1719239461502,-500.0,0.00021095,4]
[330298996,1719239461517,-500.0,0.00021095,4]
[330298997,1719239461528,-500.0,0.00021095,4]
[330298998,1719239461538,-500.0,0.00021095,4]
[330298999,1719239461548,-584.17965986,0.00021095,4]
[330299000,1719239461557,-425.58708821,0.00021095,4]
[330299001,1719239461568,-1399.22,0.00021095,4]
[330299002,1719239461577,-770.47,0.00021095,4]
[330299003,1719239461586,-696.79,0.00021095,4]
[330299004,1719239461596,-500.0,0.00021095,4]
[330299005,1719239461606,-500.0,0.00021095,4]